Cogmind - Beta 15 @@@ ROGUE MODE // 2025.06.09 @ 13:27:49 Player: Florist Result: Destroyed by EXE-6 with Concept XC Strikerail Performance ------------- Evolutions (8) 4000 Regions Visited (19) 3800 Robots Destroyed (145) 725 Value Destroyed (3212) 3212 Prototype IDs (38) 760 Alien Tech Used (6) 1200 Bonus (4100) 4100 TOTAL SCORE: 17797 Bonus ------- Registered with UFD 300 Met Optimus in HQ 500 Met Zhirov 300 Used Core Reset Matrix 3000 Cogmind --------- Core Integrity 0/1450 Matter 258/300 Energy 98/100 System Corruption 4% Temperature Cool (0) Movement Core (50) Location -2/Protoforge Parts ------- > --- POWER (1) -------- (None) > --- PROPULSION (9) --- (None) > --- UTILITY (11) ----- Machine Analyzer Advanced Signal Interpreter Advanced Hacking Suite Advanced Hacking Suite Improved System Shield > --- WEAPON (2) ------- (None) > --- INVENTORY (5) ---- Advanced Power Amplifier Subatomic Replicator Terrabomb Tachyon Dispersion Ray Improved Plasma Cutter Peak State ------------ > --- POWER ------------ Heavy Antimatter Reactor > --- PROPULSION ------- Improved Flight Unit Improved Flight Unit Improved Flight Unit Field Propulsion Array Diametric Drive Q-thruster Improved Q-thruster > --- UTILITY ---------- Advanced Cooling System Small Storage Unit Structural Scanner Machine Analyzer Long-range Sensor Array Advanced Signal Interpreter Long-range IFF Parser 0b10 Decoder Chip [Scout] Advanced Hacking Suite Advanced Hacking Suite Experimental System Shield > --- WEAPON ----------- Disintegrator > --- INVENTORY -------- Advanced Power Amplifier Improved System Shield Subatomic Replicator Terrabomb Tachyon Dispersion Ray Improved Plasma Cutter CPS Tube [Rating: 144] Favorites ----------- Power Cooled Ion Engine Engine Cooled Ion Engine Power Core Enhanced Fission Core Reactor Heavy Antimatter Reactor Propulsion Light Treads Treads Light Treads Leg Aluminum Leg Wheel Wheel Flight Unit Improved Flight Unit Utility Huge Storage Unit Device Seismic Detector Storage Huge Storage Unit Processor Machine Analyzer Hackware Advanced Hacking Suite Protection Hardened Light Armor Plating Weapon Minigun Energy Gun Medium Laser Energy Cannon Disintegrator Ballistic Gun Minigun Ballistic Cannon Enhanced Hardcell Cannon Special Weapon CPS Tube Impact Weapon Mace Slashing Weapon Scythe Build | -11 -10 -9 -9 -9 -9 -6 -5 -5 -5 -5 -5 -5 -4 -4 -3 -3 -2 -2 -2 ------- Run | Yrd Mat Mat Sto Rec Scr Fac Fac Was Fac Upp Upp Zhi Pro Fac Res Qua Res Tes Frg Slots Evolved 16 | . . 2 . . . 6 2 . . . . . . 2 2 . 2 . . Power . | . . . . . . . . . . . . . . . . . . . . Propulsion 7 | . . 2 . . . 2 . . . . . . . 1 1 . 1 . . Utility 9 | . . . . . . 4 2 . . . . . . 1 1 . 1 . . Weapon . | . . . . . . . . . . . . . . . . . . . . Parts Attached 129 | 7 13 24 10 . 10 10 6 . 2 . 2 7 . 6 3 14 7 7 1 Power 12 | 1 2 2 2 . . 1 1 . . . . 1 . . . 2 . . . Engine 8 | 1 2 2 2 . . 1 . . . . . . . . . . . . . Core 2 | . . . . . . . 1 . . . . . . . . 1 . . . Reactor 2 | . . . . . . . . . . . . 1 . . . 1 . . . Propulsion 35 | 2 5 9 3 . 8 1 . . . . 1 . . 2 2 . 2 . . Treads 15 | 2 1 7 3 . 2 . . . . . . . . . . . . . . Leg 2 | . 2 . . . . . . . . . . . . . . . . . . Wheel 4 | . 2 2 . . . . . . . . . . . . . . . . . Hover . | . . . . . . . . . . . . . . . . . . . . Flight 14 | . . . . . 6 1 . . . . 1 . . 2 2 . 2 . . Utility 49 | 2 1 3 1 . 2 7 5 . 2 . 1 5 . 4 1 7 4 3 1 Device 26 | 1 . . . . 2 4 1 . 2 . . 3 . 2 . 6 3 2 . Storage 3 | 1 1 . . . . . . . . . . 1 . . . . . . . Processor 8 | . . 1 . . . 2 2 . . . . . . 2 . 1 . . . Hackware 8 | . . . . . . 1 2 . . . 1 . . . 1 . 1 1 1 Protection 4 | . . 2 1 . . . . . . . . 1 . . . . . . . Artifact . | . . . . . . . . . . . . . . . . . . . . Weapon 33 | 2 5 10 4 . . 1 . . . . . 1 . . . 5 1 4 . Energy Gun 5 | . 1 2 . . . . . . . . . . . . . . . 2 . Energy Cannon 1 | . . . . . . . . . . . . . . . . . . 1 . Ballistic Gun 14 | 2 3 7 2 . . . . . . . . . . . . . . . . Ballistic Cannon 3 | . . . . . . . . . . . . . . . . 2 1 . . Launcher . | . . . . . . . . . . . . . . . . . . . . Special Weapon 4 | . 1 . . . . 1 . . . . . 1 . . . 1 . . . Impact Weapon 2 | . . 1 . . . . . . . . . . . . . 1 . . . Slashing Weapon 4 | . . . 2 . . . . . . . . . . . . 1 . 1 . Piercing Weapon . | . . . . . . . . . . . . . . . . . . . . Special Melee Weapon . | . . . . . . . . . . . . . . . . . . . . Unidentified Prototypes 20 | . . 1 1 . . . 1 . 1 . . 6 . 1 1 3 2 3 . Parts Lost 32 | . 4 8 . . . . 1 . . 1 . . . . 1 . 2 1 14 Power 3 | . 1 1 . . . . . . . . . . . . . . . . 1 Propulsion 13 | . 2 3 . . . . . . . . . . . . . . 1 1 6 Utility 8 | . . . . . . . 1 . . 1 . . . . . . . . 6 Weapon 8 | . 1 4 . . . . . . . . . . . . 1 . 1 . 1 Highest Loss Streak 7 | . 2 2 . . . . 1 . . 1 . . . . 1 . 1 1 7 To Critical Strikes . | . . . . . . . . . . . . . . . . . . . . Average Backups 16 | 3 12 21 23 23 22 9 7 7 7 8 7 7 8 7 7 7 7 6 6 Power . | . . . . 1 . . . . . . . . . . . . . . . Propulsion 5 | 1 5 8 7 7 6 1 1 1 1 1 . . . . . . . . . Utility 7 | . 4 7 11 12 11 4 2 2 2 4 3 4 5 4 4 3 2 2 1 Weapon 1 | . 1 4 2 2 2 . . . . . . . . . . . . . 1 Tool/Special . | . . . . . . . . . . . . . . . . . . . . Unused Backups 27 | . 3 6 4 . 1 5 1 . 1 . 1 . . . . 2 . . 3 Power 1 | . . . . . 1 . . . . . . . . . . . . . . Propulsion 8 | . 1 2 4 . . . . . . . 1 . . . . . . . . Utility 9 | . 2 1 . . . 3 1 . 1 . . . . . . 1 . . . Weapon 3 | . . 3 . . . . . . . . . . . . . . . . . Tool/Special 6 | . . . . . . 2 . . . . . . . . . 1 . . 3 Average Slot Usage (%) 94 | . 99 88 99 100 94 95 99 100 100 100 100 95 100 93 90 90 83 86 67 Engine 7 | . 13 4 11 11 11 6 2 . . . . . . . . . . . . Treads 26 | . 21 32 44 44 41 1 . . . . . . . . . . . . . Wheel 2 | . 6 7 . . . . . . . . . . . . . . . . . Flight 8 | . . . . . . 37 35 35 35 35 35 35 35 30 32 32 30 29 19 Device 8 | . 14 3 . . 4 18 16 17 17 17 17 14 17 15 14 13 14 16 10 Storage 9 | . 14 11 11 11 10 5 5 5 5 5 5 5 5 5 4 4 4 4 3 Processor 3 | . . . . . . 5 10 11 11 11 11 11 11 15 14 14 13 13 12 Hackware 2 | . . . . . . 5 11 11 11 11 11 11 11 10 14 14 13 13 13 Protection 4 | . . 7 9 11 5 . . . . . . . . . . . . . . Ballistic Gun 15 | . 25 20 21 22 17 . . . . . . . . . . . . . . Slashing Weapon 2 | . . . . . 2 12 11 11 11 11 11 8 5 5 4 3 3 3 3 Peak Build Rating 144 | 7 11 19 21 21 32 43 58 59 64 59 60 69 69 89 102 129 138 144 113 Average Rating 33 | 5 8 15 19 21 23 40 54 58 58 58 59 62 69 83 100 107 129 122 91 On Entrance 55 | . 7 11 18 21 21 20 43 58 59 59 53 60 69 69 87 102 129 119 113 Naked Turns . | . . . . . . . . . . . . . . . . . . . . Heaviest Build 99 | 14 90 96 99 99 99 94 25 25 25 25 25 29 29 30 30 43 41 44 31 Greatest Support 83 | 40 40 80 80 80 83 63 30 30 30 30 31 31 31 42 48 48 59 54 46 Greatest Overweight (x) 9 | . 8 9 1 1 4 3 . . . . . . . . . . . . . Average Overweight (x) . | . 2 1 1 1 . . . . . . . . . . . . . . . Largest Inventory Capacity 25 | 8 25 25 25 25 25 25 8 8 8 8 8 8 8 8 8 8 8 8 8 Average Capacity 20 | 7 24 25 25 25 24 9 8 8 8 8 8 8 8 8 8 8 8 8 7 Most Carried 25 | 5 18 25 25 23 25 25 8 8 8 8 8 8 8 8 7 8 8 7 7 Average Carried 16 | 3 12 21 23 23 22 9 7 7 7 8 7 7 8 7 7 7 7 6 6 Final Capacity 25 | 8 25 25 25 25 25 8 8 8 8 8 8 8 8 8 8 8 8 8 5 Final Carried 25 | 5 16 23 23 23 25 8 7 8 8 8 7 8 8 8 7 7 7 7 5 Class Distribution -------------------- 40% | Mutant 33% | Scavenger-Mutant 19% | Hacker-Scout 4% | Scout Dominant Class ---------------- Mutant | -10/Materials Scavenger-Mutant | -9/Materials Scavenger-Mutant | -9/Storage Scavenger-Mutant | -9/Recycling Mutant | -9/Scraptown Scout | -6/Factory Hacker-Scout | -5/Factory Hacker-Scout | -5/Waste Hacker-Scout | -5/Factory Hacker-Scout | -5/Upper Caves Hacker-Scout | -5/Upper Caves Hacker-Scout | -5/Zhirov Hacker-Scout | -4/Proximity Caves Hacker-Scout | -4/Factory Hacker-Scout | -3/Research Hacker-Scout | -3/Quarantine Hacker-Scout | -2/Research Hacker-Scout | -2/Testing Hacker-Scout | -2/Protoforge Resources | -11 -10 -9 -9 -9 -9 -6 -5 -5 -5 -5 -5 -5 -4 -4 -3 -3 -2 -2 -2 ----------- Run | Yrd Mat Mat Sto Rec Scr Fac Fac Was Fac Upp Upp Zhi Pro Fac Res Qua Res Tes Frg Matter Collected 4031 | 235 594 1100 905 . 30 370 . . 27 87 37 78 32 110 30 125 . 190 81 Remotely . | . . . . . . . . . . . . . . . . . . . . Salvage Created 5703 | 167 813 1696 1428 . . 642 88 . 51 . . 78 . 311 160 159 . 30 80 Parts 350 | 13 43 121 83 . . 33 3 . 7 . . 9 . 13 11 7 . 4 3 Haulers Intercepted 18 | . 2 5 6 . . 4 1 . . . . . . . . . . . . Recyclers Shooed 5 | . . 4 . . . . . . . . . . . . . 1 . . . Parts Field Recycled . | . . . . . . . . . . . . . . . . . . . . Retrieved Matter . | . . . . . . . . . . . . . . . . . . . . Parts Self-Destructed 8 | . . . . . . . . . . 2 . 6 . . . . . . . Prevented . | . . . . . . . . . . . . . . . . . . . . Kills | -11 -10 -9 -9 -9 -9 -6 -5 -5 -5 -5 -5 -5 -4 -4 -3 -3 -2 -2 -2 ------- Run | Yrd Mat Mat Sto Rec Scr Fac Fac Was Fac Upp Upp Zhi Pro Fac Res Qua Res Tes Frg Combat Hostiles Destroyed 63 | . 14 28 21 . . . . . . . . . . . . . . . . Melee 1 | . . 1 . . . . . . . . . . . . . . . . . Guns 62 | . 14 27 21 . . . . . . . . . . . . . . . . Classes Destroyed 11 | 2 7 2 . . . . . . . . . . . . . . . . . Worker 9 | . 3 2 1 . . 2 . . 1 . . . . . . . . . . Builder 5 | . 1 2 . . . 2 . . . . . . . . . . . . . Tunneler 8 | 5 . 1 . . . 1 . . . . . . . 1 . . . . . Hauler 18 | . 2 5 6 . . 4 1 . . . . . . . . . . . . Recycler 9 | 1 1 3 1 . . . . . . . . . . 2 . 1 . . . Mechanic 2 | . 1 1 . . . . . . . . . . . . . . . . . Operator 14 | . . 3 3 . . 2 . . 1 . . . . . 3 1 . 1 . Watcher 17 | . 3 3 2 . . 3 . . 1 . . . . 1 2 . . . 2 Swarmer 16 | . 3 10 3 . . . . . . . . . . . . . . . . Grunt 30 | . 11 10 9 . . . . . . . . . . . . . . . . Sentry 17 | . . 8 9 . . . . . . . . . . . . . . . . Best Kill Streak 5 | 3 4 4 5 . . 3 1 . 2 . . . . 2 1 1 . . 2 Combat Bots Only 4 | . 2 4 4 . . . . . . . . . . . . . . . . Max Kills in Single Turn 2 | 1 2 2 2 . . 1 1 . 1 . . . . 1 1 1 . 1 1 Gunslinging . | . . . . . . . . . . . . . . . . . . . . Exploded . | . . . . . . . . . . . . . . . . . . . . Melee 1 | . . 1 . . . . . . . . . . . . . . . . . Uniques/NPCs Destroyed . | . . . . . . . . . . . . . . . . . . . . Combat | -11 -10 -9 -9 -9 -9 -6 -5 -5 -5 -5 -5 -5 -4 -4 -3 -3 -2 -2 -2 -------- Run | Yrd Mat Mat Sto Rec Scr Fac Fac Was Fac Upp Upp Zhi Pro Fac Res Qua Res Tes Frg Hostile Shots Fired 605 | . 128 159 106 . . 19 12 . 2 4 6 . . 8 16 . 57 2 86 Missed 208 | . 37 44 27 . . 14 4 . 1 3 2 . . 6 7 . 32 . 31 Hits 397 | . 91 115 79 . . 5 8 . 1 1 4 . . 2 9 . 25 2 55 Melee 1 | . . . . . . . . . . . . . . . . . 1 . . Projectile 396 | . 91 115 79 . . 5 8 . 1 1 4 . . 2 9 . 24 2 55 Critical Strikes 9 | . 2 . 1 . . . . . . . . . . . . . . . 6 Part Disruptions 1 | . . . . . . . . . . . . . . . . . . . 1 Damage Taken 6729 | . 1121 1328 1030 . . 126 95 . 26 13 65 . . 42 287 . 548 89 1959 Core 2113 | . 183 232 108 . . 35 40 . . . 15 . . 23 156 . 45 44 1232 Absorbed by Shields . | . . . . . . . . . . . . . . . . . . . . Regen/Repaired (Parts) 51 | . . . . . . . . . . . . . . . . 27 24 . . Core Remaining (%) 72 | 100 26 . . . 15 95 . . . . . . 94 98 . 82 . . . Volleys Fired 343 | 15 104 141 80 . . 1 . . . . . 1 . . . . . 1 . Largest 2 | 2 2 2 2 . . 1 . . . . . 1 . . . . . 1 . Hottest 100 | 40 100 100 50 . . . . . . . . . . . . . . 80 . Shots Fired 670 | 30 200 277 160 . . 1 . . . . . 1 . . . . . 1 . Gun 660 | 30 192 277 160 . . . . . . . . . . . . . . 1 . Cannon . | . . . . . . . . . . . . . . . . . . . . Launcher . | . . . . . . . . . . . . . . . . . . . . Special 10 | . 8 . . . . 1 . . . . . 1 . . . . . . . Kinetic 611 | 30 164 257 160 . . . . . . . . . . . . . . . . Thermal 56 | . 36 20 . . . . . . . . . . . . . . . . . Explosive . | . . . . . . . . . . . . . . . . . . . . Electromagnetic 1 | . . . . . . . . . . . . . . . . . . 1 . Robot Hit Streak 17 | 5 17 14 15 . . 3 . . . . . 4 . . . . . . . Robot Miss Streak 6 | 2 6 6 5 . . . . . . . . . . . . . . . . Penetration Max . | . . . . . . . . . . . . . . . . . . . . Secondary Targets 4 | . 1 2 1 . . . . . . . . . . . . . . . . Max Gunslinging Chain 1 | . 1 1 1 . . . . . . . . . . . . . . . . Shots Hit Robots 509 | 20 125 174 113 . . 31 3 . 5 . . 3 . 6 12 7 3 1 6 Core Hits 200 | 8 42 68 46 . . 13 2 . 3 . . . . 4 6 3 . 1 4 Critical Kills 1 | . . 1 . . . . . . . . . . . . . . . . . Critical Parts Destroyed 5 | . . 2 3 . . . . . . . . . . . . . . . . Critical Strikes 14 | . . 4 3 . . 2 1 . . . . 1 . 1 . 1 . . 1 Burn 1 | . . 1 . . . . . . . . . . . . . . . . . Destroy 5 | . . 2 3 . . . . . . . . . . . . . . . . Smash 1 | . . 1 . . . . . . . . . . . . . . . . . Sever 7 | . . . . . . 2 1 . . . . 1 . 1 . 1 . . 1 Melee Attacks 234 | . . 3 5 . . 66 22 . 18 1 15 2 3 18 26 20 20 5 10 Impact 3 | . . 3 . . . . . . . . . . . . . . . . . Slashing 231 | . . . 5 . . 66 22 . 18 1 15 2 3 18 26 20 20 5 10 Piercing . | . . . . . . . . . . . . . . . . . . . . Sneak Attacks 19 | . . . . . . 8 1 . 1 . . . . 3 3 2 . 1 . Combat Hostiles . | . . . . . . . . . . . . . . . . . . . . Follow-up Attacks 7 | . . . . . . 4 1 . 2 . . . . . . . . . . Damage Inflicted 10303 | 203 1515 2817 1917 . . 1421 139 . 246 . . 122 . 326 652 373 255 77 240 Guns 6368 | 203 1490 2758 1917 . . . . . . . . . . . . . . . . Cannons . | . . . . . . . . . . . . . . . . . . . . Explosions . | . . . . . . . . . . . . . . . . . . . . Melee 3910 | . . 59 . . . 1421 139 . 246 . . 122 . 326 652 373 255 77 240 Ramming 1 | . 1 . . . . . . . . . . . . . . . . . . Kinetic 5994 | 203 1291 2583 1917 . . . . . . . . . . . . . . . . Thermal 398 | . 223 175 . . . . . . . . . . . . . . . . . Explosive . | . . . . . . . . . . . . . . . . . . . . Electromagnetic . | . . . . . . . . . . . . . . . . . . . . Impact 59 | . . 59 . . . . . . . . . . . . . . . . . Slashing 3851 | . . . . . . 1421 139 . 246 . . 122 . 326 652 373 255 77 240 Piercing . | . . . . . . . . . . . . . . . . . . . . Highest Corruption 8 | . 2 . . . . . . 8 8 8 8 8 8 . . . 2 2 4 Average Corruption 4 | . 2 . . . . . . 8 8 8 8 8 8 . . . 1 2 2 Corruption Purged . | . . . . . . . . . . . . . . . . . . . . Corruption Blocked . | . . . . . . . . . . . . . . . . . . . . Effects 39 | . 7 . . . . . . 1 7 4 7 2 4 . . . 1 4 2 Message Errors 12 | . 1 . . . . . . . 2 2 3 1 . . . . 1 2 . Matter Fused 12 | . 1 . . . . . . . 3 . 2 1 2 . . . . 2 1 Heat Flow Errors 3 | . 1 . . . . . . . . 2 . . . . . . . . . Energy Discharges 1 | . 1 . . . . . . . . . . . . . . . . . . Data Loss (minor) 8 | . 1 . . . . . . 1 2 . 2 . 1 . . . . . 1 Data Loss (major) 1 | . . . . . . . . . . . . . 1 . . . . . . Alerts 2 | . 2 . . . . . . . . . . . . . . . . . . Overload Shots . | . . . . . . . . . . . . . . . . . . . . Overflow Damage 484 | . . 30 . . . 131 . . 19 . . 46 . 42 105 51 60 . . Projectiles . | . . . . . . . . . . . . . . . . . . . . Explosions . | . . . . . . . . . . . . . . . . . . . . Melee 484 | . . 30 . . . 131 . . 19 . . 46 . 42 105 51 60 . . Knockbacks . | . . . . . . . . . . . . . . . . . . . . Impact . | . . . . . . . . . . . . . . . . . . . . Kinetic . | . . . . . . . . . . . . . . . . . . . . Secondary . | . . . . . . . . . . . . . . . . . . . . Self-Inflicted Damage . | . . . . . . . . . . . . . . . . . . . . Shots . | . . . . . . . . . . . . . . . . . . . . Rammed . | . . . . . . . . . . . . . . . . . . . . Targets Rammed 1 | . 1 . . . . . . . . . . . . . . . . . . Kicked . | . . . . . . . . . . . . . . . . . . . . Crushed 1 | . 1 . . . . . . . . . . . . . . . . . . Highest Temperature 312 | . 180 45 113 . . 63 . 4 . 210 13 . 6 . 312 . 175 5 . Average Temperature 44 | . 27 10 25 . . 14 . 3 . 129 6 . 6 . 94 . 52 5 . Received Heat Transfer 1512 | . 570 456 369 . . 9 . . . . 18 . . . 27 . 18 9 36 Siege Activations . | . . . . . . . . . . . . . . . . . . . . Martial Activations . | . . . . . . . . . . . . . . . . . . . . Shielding Activations . | . . . . . . . . . . . . . . . . . . . . Robots Disrupted . | . . . . . . . . . . . . . . . . . . . . Combat Hostiles . | . . . . . . . . . . . . . . . . . . . . Robots Corrupted . | . . . . . . . . . . . . . . . . . . . . Combat Hostiles . | . . . . . . . . . . . . . . . . . . . . Parts Fried . | . . . . . . . . . . . . . . . . . . . . Impact Corruptions 1 | . . 1 . . . . . . . . . . . . . . . . . Robots Melted . | . . . . . . . . . . . . . . . . . . . . Combat Hostiles . | . . . . . . . . . . . . . . . . . . . . Parts Melted 2 | . 1 1 . . . . . . . . . . . . . . . . . Heat Transferred 1092 | . 500 592 . . . . . . . . . . . . . . . . . Parts Sabotaged . | . . . . . . . . . . . . . . . . . . . . Parts Stolen . | . . . . . . . . . . . . . . . . . . . . Parts Stripped . | . . . . . . . . . . . . . . . . . . . . Power Chain Reactions . | . . . . . . . . . . . . . . . . . . . . Alert | -11 -10 -9 -9 -9 -9 -6 -5 -5 -5 -5 -5 -5 -4 -4 -3 -3 -2 -2 -2 ------- Run | Yrd Mat Mat Sto Rec Scr Fac Fac Was Fac Upp Upp Zhi Pro Fac Res Qua Res Tes Frg Maximum Alert Level 1 | . . 1 1 . . . . . . . . . . . . . . . . Low Security (%) 69 | 100 100 13 40 100 . 100 100 100 100 . . . . 100 100 100 100 100 100 Level 1 30 | . . 86 59 . . . . . . . . . . . . . . . . Level 2 . | . . . . . . . . . . . . . . . . . . . . Level 3 . | . . . . . . . . . . . . . . . . . . . . Level 4 . | . . . . . . . . . . . . . . . . . . . . Level 5 . | . . . . . . . . . . . . . . . . . . . . High Security . | . . . . . . . . . . . . . . . . . . . . Max Security . | . . . . . . . . . . . . . . . . . . . . Peak Influence 351 | 15 114 351 288 74 . 150 90 33 76 . . . . 149 189 107 120 68 83 Initial 135 | . . 45 135 74 . . 73 18 16 . . . . . 72 92 23 58 9 Average 121 | 2 46 248 198 27 . 33 72 26 36 . . . . 40 99 65 36 47 29 Influence Increases 4571 | 30 487 1019 705 . . 414 99 15 167 . 210 5 . 314 404 148 254 70 230 Destroy 0b10 Robot/C 1260 | . 280 560 420 . . . . . . . . . . . . . . . . Destroy 0b10 Robot/NC 405 | 30 55 100 65 . . 70 5 . 15 . . 5 . 20 20 10 . . 10 Destroy Leader 420 | . 60 176 156 . . 14 2 . 2 . . . . 2 4 . . . 4 Successful Hack 354 | . 26 11 24 . . 69 14 . 35 . . . . 45 53 8 41 10 18 Disable Machine 315 | . 30 15 30 . . 30 30 . 15 . . . . 15 . 75 . 60 15 Destroy Structure 152 | . 6 7 10 . . 21 18 . 10 . . . . 22 12 10 33 . 3 Partial Spotted 330 | . . . . . . 15 . 15 90 . . . . 30 75 30 45 . 30 Lose Combat Pursuer 1335 | . 30 150 . . . 195 30 . . . 210 . . 180 240 15 135 . 150 Influence Decreases 4548 | 30 379 807 833 192 . 264 197 44 125 65 90 125 . 175 379 270 191 157 225 Entered New Map 843 | . . 63 185 118 . . 77 34 7 25 . 120 . . 67 72 19 47 9 Time Decay 3454 | 30 369 664 648 74 . 264 110 10 118 40 90 5 . 175 302 198 152 100 105 Lost Part 251 | . 10 80 . . . . 10 . . . . . . . 10 . 20 10 111 Squads Dispatched 52 | . 1 3 3 . . 10 3 . 4 . . . . 5 7 3 9 1 3 Investigation 27 | . 1 1 2 . . 6 3 . 3 . . . . 4 4 1 2 . . Extermination 15 | . . . . . . 3 . . 1 . . . . 1 1 2 4 1 2 Reinforcement 10 | . . 2 1 . . 1 . . . . . . . . 2 . 3 . 1 Assault . | . . . . . . . . . . . . . . . . . . . . Garrison . | . . . . . . . . . . . . . . . . . . . . Intercept . | . . . . . . . . . . . . . . . . . . . . Searches Triggered . | . . . . . . . . . . . . . . . . . . . . Construction Impeded . | . . . . . . . . . . . . . . . . . . . . Haulers Reinforced . | . . . . . . . . . . . . . . . . . . . . Active Scanning Responses . | . . . . . . . . . . . . . . . . . . . . Cargo Convoy Interrupts . | . . . . . . . . . . . . . . . . . . . . Stealth | -11 -10 -9 -9 -9 -9 -6 -5 -5 -5 -5 -5 -5 -4 -4 -3 -3 -2 -2 -2 --------- Run | Yrd Mat Mat Sto Rec Scr Fac Fac Was Fac Upp Upp Zhi Pro Fac Res Qua Res Tes Frg Distress Signals 13 | . . 1 3 . . 1 . . . . . . . . 2 1 . . 5 Communications Jammed . | . . . . . . . . . . . . . . . . . . . . Distress Signals . | . . . . . . . . . . . . . . . . . . . . Times Spotted 268 | . 30 49 28 . . 21 5 5 4 3 13 . . 13 27 2 34 5 29 Peak Tracking Total 23 | . 5 5 4 . . 6 4 5 1 3 4 . . 8 7 3 23 3 18 Tactical Retreats 41 | . 2 5 . . . 5 1 . . . 6 . . 5 10 1 2 . 4 Traps | -11 -10 -9 -9 -9 -9 -6 -5 -5 -5 -5 -5 -5 -4 -4 -3 -3 -2 -2 -2 ------- Run | Yrd Mat Mat Sto Rec Scr Fac Fac Was Fac Upp Upp Zhi Pro Fac Res Qua Res Tes Frg Traps Triggered 9 | . 1 1 2 . . 2 1 . . . . . . . 1 . 1 . . Indirectly . | . . . . . . . . . . . . . . . . . . . . Trap Hack Attempts . | . . . . . . . . . . . . . . . . . . . . Triggered . | . . . . . . . . . . . . . . . . . . . . Disarmed . | . . . . . . . . . . . . . . . . . . . . Reprogrammed . | . . . . . . . . . . . . . . . . . . . . Reused . | . . . . . . . . . . . . . . . . . . . . Traps Extracted . | . . . . . . . . . . . . . . . . . . . . Installed . | . . . . . . . . . . . . . . . . . . . . Triggered . | . . . . . . . . . . . . . . . . . . . . Machines | -11 -10 -9 -9 -9 -9 -6 -5 -5 -5 -5 -5 -5 -4 -4 -3 -3 -2 -2 -2 ---------- Run | Yrd Mat Mat Sto Rec Scr Fac Fac Was Fac Upp Upp Zhi Pro Fac Res Qua Res Tes Frg Machines Disabled 22 | . 2 1 2 . . 2 2 . 1 . . . . 1 . 5 . 4 2 Max in Single Turn 1 | . 1 1 1 . . 1 1 . 1 . . . . 1 . 1 . 1 1 Garrison Access 11 | . . . 1 . . 2 1 . 1 . . . . 2 3 . 1 . . Machines Repaired . | . . . . . . . . . . . . . . . . . . . . Machines Dismantled . | . . . . . . . . . . . . . . . . . . . . Machines Sabotaged . | . . . . . . . . . . . . . . . . . . . . Overloaded Fab Kills . | . . . . . . . . . . . . . . . . . . . . Hacking | -11 -10 -9 -9 -9 -9 -6 -5 -5 -5 -5 -5 -5 -4 -4 -3 -3 -2 -2 -2 --------- Run | Yrd Mat Mat Sto Rec Scr Fac Fac Was Fac Upp Upp Zhi Pro Fac Res Qua Res Tes Frg Machines Accessed 115 | . 9 7 11 . 4 15 5 . 8 3 . 5 . 13 14 8 5 3 5 Terminals 67 | . 8 6 10 . . 7 2 . 4 . . . . 7 8 6 3 2 4 Fabricators 4 | . . . . . . 1 . . . . . . . 1 1 . . . 1 Repair Stations 1 | . . . . . . . . . . . . . . . . 1 . . . Recycling Units 17 | . 1 . . . . 5 2 . 3 . . . . 3 2 . 1 . . Scanalyzers 1 | . . 1 . . . . . . . . . . . . . . . . . Garrison Access 13 | . . . 1 . . 2 1 . 1 . . . . 2 3 1 1 1 . Total Hacks 285 | . 27 14 28 . 31 26 9 . 19 8 . 18 . 31 31 16 9 7 11 Successful 183 | . 11 7 14 . 31 17 4 . 10 8 . 18 . 22 16 9 7 2 7 Failed 102 | . 16 7 14 . . 9 5 . 9 . . . . 9 15 7 2 5 4 Catastrophic 10 | . 2 . 2 . . . 1 . . . . . . 1 1 1 . 2 . Database Lockouts . | . . . . . . . . . . . . . . . . . . . . Manual 125 | . 15 12 13 . . 17 5 . 10 . . . . 17 19 5 4 2 6 Terminals 168 | . 25 13 26 . . 16 6 . 11 . . . . 19 22 10 7 5 8 Fabricators 9 | . . . . . . 1 . . . . . . . 3 2 . . . 3 Repair Stations 3 | . . . . . . . . . . . . . . . . 3 . . . Recycling Units 22 | . 2 . . . . 5 2 . 5 . . . . 4 3 . 1 . . Scanalyzers 1 | . . 1 . . . . . . . . . . . . . . . . . Garrison Access 25 | . . . 2 . . 4 1 . 3 . . . . 5 4 3 1 2 . Terminal Hacks 95 | . 4 . 8 . 31 3 1 . 3 8 . 18 . 7 3 4 3 . 2 Record 45 | . . . . . 30 . . . . 6 . 6 . . . 3 . . . Part Schematic 5 | . . . . . . 1 . . . . . 4 . . . . . . . Robot Analysis 4 | . . . . . . . . . . . . 4 . . . . . . . Prototype ID Bank 5 | . . . . . . . . . . . . 4 . 1 . . . . . Open Door 6 | . . . 3 . . . . . . 2 . . . . 1 . . . . Level Access Points 1 | . . . . . . . 1 . . . . . . . . . . . . Branch Access Points 4 | . . . . . . . . . 1 . . . . 1 1 . 1 . . Machine Index 1 | . . . . . . . . . . . . . . . 1 . . . . Terminal Index 4 | . . . . . . . . . . . . . . 3 . . . . 1 Recycling Unit Index 1 | . . . . . . . . . . . . . . . . . 1 . . Locate Traps 10 | . 1 . 3 . . 2 . . 2 . . . . 1 . 1 . . . Hauler Manifests 1 | . . . . . . . . . . . . . . 1 . . . . . Zone Layout 7 | . 3 . 2 . . . . . . . . . . . . . 1 . 1 Proto ID Catalog 1 | . . . . . 1 . . . . . . . . . . . . . . Fabricator Hacks 7 | . . . . . . 1 . . . . . . . 3 2 . . . 1 Network Status 3 | . . . . . . 1 . . . . . . . 1 . . . . 1 Load Schematic 2 | . . . . . . . . . . . . . . 1 1 . . . . Build 2 | . . . . . . . . . . . . . . 1 1 . . . . Repair Station Hacks 2 | . . . . . . . . . . . . . . . . 2 . . . Scan Component 1 | . . . . . . . . . . . . . . . . 1 . . . Repair 1 | . . . . . . . . . . . . . . . . 1 . . . Recycling Unit Hacks . | . . . . . . . . . . . . . . . . . . . . Scanalyzer 1 | . . 1 . . . . . . . . . . . . . . . . . Insert Component 1 | . . 1 . . . . . . . . . . . . . . . . . Garrison Access Hacks 11 | . . . 1 . . 2 1 . 1 . . . . 2 3 . 1 . . Seal Access 11 | . . . 1 . . 2 1 . 1 . . . . 2 3 . 1 . . Unauthorized Hacks 66 | . 6 6 5 . . 11 2 . 6 . . . . 10 8 3 3 2 4 Terminals 51 | . 6 6 5 . . 6 . . 4 . . . . 7 6 3 2 2 4 Assimilate 2 | . . . . . . . . . . . . . . . 1 . . 1 . Botnet 49 | . 6 6 5 . . 6 . . 4 . . . . 7 5 3 2 1 4 Fabricators . | . . . . . . . . . . . . . . . . . . . . Repair Stations . | . . . . . . . . . . . . . . . . . . . . Recycling Units 15 | . . . . . . 5 2 . 2 . . . . 3 2 . 1 . . Fedlink 15 | . . . . . . 5 2 . 2 . . . . 3 2 . 1 . . Scanalyzers . | . . . . . . . . . . . . . . . . . . . . Garrison Access . | . . . . . . . . . . . . . . . . . . . . Data Cores Recovered 7 | . . . 2 . . 1 . . 1 . . . . . 2 1 . . . Used 1 | . . . . . . 1 . . . . . . . . . . . . . Hacking Detections 59 | . 8 4 7 . . 8 2 . 3 . . . . 7 8 6 1 3 2 Full Trace Events 9 | . 2 . 1 . . . 1 . 1 . . . . 1 2 1 . . . Feedback Events . | . . . . . . . . . . . . . . . . . . . . Feedback Blocked 1 | . . . . . . . 1 . . . . . . . . . . . . Robot Schematics Acquired . | . . . . . . . . . . . . . . . . . . . . Robots Built . | . . . . . . . . . . . . . . . . . . . . Authchips . | . . . . . . . . . . . . . . . . . . . . Time . | . . . . . . . . . . . . . . . . . . . . Total Robot Build Rating . | . . . . . . . . . . . . . . . . . . . . Part Schematics Acquired 5 | . . . . . . 1 . . . . . 4 . . . . . . . Parts Built 2 | . . . . . . . . . . . . . . 1 1 . . . . Authchips . | . . . . . . . . . . . . . . . . . . . . Time 268 | . . . . . . . . . . . . . . 134 134 . . . . Total Part Build Rating 8 | . . . . . . . . . . . . . . 4 4 . . . . Parts Repaired 1 | . . . . . . . . . . . . . . . . 1 . . . Time 25 | . . . . . . . . . . . . . . . . 25 . . . Parts Recycled . | . . . . . . . . . . . . . . . . . . . . Recycled Matter . | . . . . . . . . . . . . . . . . . . . . Retrieved Matter . | . . . . . . . . . . . . . . . . . . . . Retrieved Components . | . . . . . . . . . . . . . . . . . . . . Parts Scanalyzed . | . . . . . . . . . . . . . . . . . . . . Part Schematics Acquired . | . . . . . . . . . . . . . . . . . . . . Parts Damaged . | . . . . . . . . . . . . . . . . . . . . Bothacking | -11 -10 -9 -9 -9 -9 -6 -5 -5 -5 -5 -5 -5 -4 -4 -3 -3 -2 -2 -2 ------------ Run | Yrd Mat Mat Sto Rec Scr Fac Fac Was Fac Upp Upp Zhi Pro Fac Res Qua Res Tes Frg Used RIF Installer . | . . . . . . . . . . . . . . . . . . . . Robots Hacked . | . . . . . . . . . . . . . . . . . . . . Non-combat . | . . . . . . . . . . . . . . . . . . . . Combat . | . . . . . . . . . . . . . . . . . . . . Robot Hacks Applied . | . . . . . . . . . . . . . . . . . . . . Relay Couplers Released 3 | . . . . . . . . . . . . . . . . . 3 . . Machine Destruction 3 | . . . . . . . . . . . . . . . . . 3 . . Fabnet Peak Effective % . | . . . . . . . . . . . . . . . . . . . . Robots Rewired . | . . . . . . . . . . . . . . . . . . . . Allies Hacked . | . . . . . . . . . . . . . . . . . . . . Hacks Repelled . | . . . . . . . . . . . . . . . . . . . . Allies | -11 -10 -9 -9 -9 -9 -6 -5 -5 -5 -5 -5 -5 -4 -4 -3 -3 -2 -2 -2 -------- Run | Yrd Mat Mat Sto Rec Scr Fac Fac Was Fac Upp Upp Zhi Pro Fac Res Qua Res Tes Frg Total Allies 2 | . . . . . . . . . . . . . . . 1 . . 1 . Largest Group 1 | . . . . . . . . . . . . . . . . . . 1 . Highest-Rated Group 26 | . . . . . . . . . . . . . . . . . . 26 . Highest-Rated Ally 26 | . . . . . . . . . . . . . . . . . . 26 . Total Orders 3 | . . . . . 2 . . . . . . . . . . . . 1 . STAY 1 | . . . . . . . . . . . . . . . . . . 1 . RETURN 2 | . . . . . 2 . . . . . . . . . . . . . . Ally Attacks . | . . . . . . . . . . . . . . . . . . . . Total Damage . | . . . . . . . . . . . . . . . . . . . . Kills . | . . . . . . . . . . . . . . . . . . . . Allies Corrupted . | . . . . . . . . . . . . . . . . . . . . Allies Melted . | . . . . . . . . . . . . . . . . . . . . Intel | -11 -10 -9 -9 -9 -9 -6 -5 -5 -5 -5 -5 -5 -4 -4 -3 -3 -2 -2 -2 ------- Run | Yrd Mat Mat Sto Rec Scr Fac Fac Was Fac Upp Upp Zhi Pro Fac Res Qua Res Tes Frg Active Infowar (turns) 8366 | 86 2733 773 . . 504 859 226 26 292 132 297 65 133 388 669 402 323 201 257 Sensors 4154 | . . . . . . 802 220 26 289 132 297 65 133 387 669 398 323 197 216 IFF 2148 | . . . . . . . . . . . . 22 133 382 669 359 250 187 146 Structural 4005 | . . . . . . 711 226 26 288 132 297 65 133 388 669 391 323 201 155 Seismic 5940 | 86 2733 773 . . 504 859 226 26 292 132 297 12 . . . . . . . Decoding 2238 | . . . . . . . . . . . . . . 388 669 402 323 201 255 Machine Analysis 3393 | . . . . . . . 208 26 292 132 297 65 133 388 669 402 323 201 257 Cloaking 3 | . . . . . . . . . . . . . . . . 3 . . . Jamming 3 | . . . . . . . . . . . . . . . . 3 . . . Robot Analysis Total 4 | . . . . . . . . . . . . 4 . . . . . . . Derelict Logs Recovered 4 | . . . . . . . . . . 2 1 . 1 . . . . . . Drone Launches 6 | . . . . . 6 . . . . . . . . . . . . . . Drone Recoveries 6 | . . . . . 6 . . . . . . . . . . . . . . Decoded 0b10 Intel 31 | . . . . . . . . . . . . . . 3 6 7 5 3 7 Traps 22 | . . . . . . . . . . . . . . . 6 4 5 2 5 Emergency Access 9 | . . . . . . . . . . . . . . 3 . 3 . 1 2 Exploration | -11 -10 -9 -9 -9 -9 -6 -5 -5 -5 -5 -5 -5 -4 -4 -3 -3 -2 -2 -2 ------------- Run | Yrd Mat Mat Sto Rec Scr Fac Fac Was Fac Upp Upp Zhi Pro Fac Res Qua Res Tes Frg Turns Passed 16810 | 226 2733 2522 2377 224 4458 859 226 26 292 132 297 65 133 388 669 402 323 201 257 Spaces Moved 15853 | 110 886 930 837 94 1769 1962 481 89 757 402 627 155 396 1206 1649 908 1103 767 725 Core 11 | 6 . . . . . . . . . . . . . . . . . . 5 Treads 3876 | 104 558 631 837 94 1632 20 . . . . . . . . . . . . . Legs . | . . . . . . . . . . . . . . . . . . . . Wheels 627 | . 328 299 . . . . . . . . . . . . . . . . . Hover . | . . . . . . . . . . . . . . . . . . . . Flight 11339 | . . . . . 137 1942 481 89 757 402 627 155 396 1206 1649 908 1103 767 720 Fastest Speed 17 | 50 140 125 240 240 31 25 25 25 25 25 25 25 25 25 20 20 17 20 23 Average Speed 83 | 154 252 206 240 240 225 27 25 25 25 25 25 25 25 25 20 20 19 20 27 Slowest Speed 490 | 160 480 240 240 240 490 243 25 25 25 25 25 25 25 28 25 20 20 23 50 Overloaded Moves . | . . . . . . . . . . . . . . . . . . . . Propulsion Burnouts . | . . . . . . . . . . . . . . . . . . . . Robots Hopped 69 | . . . . . . 2 . . 2 . . . . 2 14 3 28 2 16 Potential Cave-ins . | . . . . . . . . . . . . . . . . . . . . Cave-ins Triggered . | . . . . . . . . . . . . . . . . . . . . Teleports 2 | . . . . . . . . . . . . . . . . 1 1 . . Exploration Rate (%) 54 | 7 98 75 94 12 90 52 12 83 24 55 66 60 64 31 39 81 41 68 39 Regions Visited 19 Branch Regions 10 Pre-discovered Areas 12 | . . . . . 7 1 . . . 1 . 3 . . . . . . . Known Exits Taken 12 | . . 1 . . . 1 . . 1 1 1 1 1 1 1 1 1 1 . Unknown Exits Taken 5 | 1 1 . 1 1 1 . . . . . . . . . . . . . . Scrap Searched 18 | . . . . . 7 . . . . 2 4 . 5 . . . . . . Spaces Dug 95 | . 6 . 3 . . 21 9 . 5 1 12 . 3 11 6 6 11 . 1 Terrain Destroyed 95 | . 6 . 3 . . 21 9 . 5 1 12 . 3 11 6 6 11 . 1 Melee 89 | . . . 3 . . 21 9 . 5 1 12 . 3 11 6 6 11 . 1 Projectile 6 | . 6 . . . . . . . . . . . . . . . . . . AOE . | . . . . . . . . . . . . . . . . . . . . Terrain Rammed . | . . . . . . . . . . . . . . . . . . . . Walls Destroyed . | . . . . . . . . . . . . . . . . . . . . Machines Disabled . | . . . . . . . . . . . . . . . . . . . . Actions | -11 -10 -9 -9 -9 -9 -6 -5 -5 -5 -5 -5 -5 -4 -4 -3 -3 -2 -2 -2 --------- Run | Yrd Mat Mat Sto Rec Scr Fac Fac Was Fac Upp Upp Zhi Pro Fac Res Qua Res Tes Frg Total 18430 | 136 1177 1274 1071 93 2245 2192 559 92 838 431 748 178 424 1262 1927 1094 1137 801 751 Wait 1630 | . 141 131 108 . 388 143 53 3 57 29 103 . 26 19 258 108 24 10 29 Move 15703 | 109 885 929 836 93 1768 1957 481 88 752 401 626 154 395 1201 1620 902 1050 762 694 Hop 63 | . . . . . . 2 . . 2 . . . . 2 14 2 24 2 15 Pick Up 94 | 5 16 19 8 . 24 5 1 1 4 . 2 3 . 1 . 4 . . 1 Fast Attach 103 | 7 4 13 2 . 11 2 3 . 2 . . 7 . 10 2 22 8 10 . Attach 47 | . 4 6 2 . 8 11 1 . 1 . 1 2 . 1 1 4 3 1 1 Detach 23 | . 1 3 . . 7 1 . . . . . 1 . . . 6 3 1 . Swap 49 | . 11 8 17 . 3 5 2 . 1 . 1 . . . . 1 . . . Drop 158 | . 10 21 13 . 36 10 2 . 6 . 3 8 . 10 1 23 5 9 1 Fire 343 | 15 104 141 80 . . 1 . . . . . 1 . . . . . 1 . Melee 209 | . . 3 5 . . 55 16 . 13 1 12 2 3 18 26 20 20 5 10 Ram . | . . . . . . . . . . . . . . . . . . . . Kick . | . . . . . . . . . . . . . . . . . . . . Crush 1 | . 1 . . . . . . . . . . . . . . . . . . Escape Stasis 5 | . . . . . . . . . . . . . . . 5 . . . . Rewire . | . . . . . . . . . . . . . . . . . . . . Trap . | . . . . . . . . . . . . . . . . . . . . Miscellaneous 2 | . . . . . . . . . . . . . . . . 2 . . . Route ------- -11/Scrapyard -10/Materials (discovered 5 exits: *Mat x3 / [*Min] / [*Sub]) -9/Materials (discovered 3 exits: [*Mat] / [*Min] / *Sto) -9/Storage (discovered 2 exits: [*Mat] / [*Rec]) -9/Recycling -9/Scraptown (discovered 2 exits: *Fac x2) -6/Factory (discovered 6 exits: *Fac x4 / *Low x2) -5/Factory (discovered 4 exits: Fac x4) -5/Waste -5/Factory (discovered 5 exits: *Fac / *Upp x2 / Ext x2) -5/Upper Caves -5/Upper Caves (discovered 2 exits: *Fac / *Zhi) -5/Zhirov -4/Proximity Caves -4/Factory (discovered 3 exits: *Res / Upp x2) -3/Research (discovered 3 exits: *Arm / *Qua x2) -3/Quarantine -2/Research (discovered 2 exits: *Tes x2) -2/Testing (discovered 2 exits: *Sec / *Frg) -2/Protoforge History --------- Turn | Location | Event 15 | -11/Scrapyard | Discovered new exit (range 15) 227 | -11/Scrapyard | Entered Materials 314 | -10/Materials | Build established: Mutant 362 | -10/Materials | Discovered new exit (range 7) 634 | -10/Materials | Discovered new exit (range 16) 833 | -10/Materials | Discovered new exit (range 8) 1391 | -10/Materials | Discovered new exit (range 4) 1500 | -10/Materials | Core integrity fell below 50% 1640 | -10/Materials | Discovered new exit (range 13) 2599 | -10/Materials | Build established: Scavenger-Mutant 2960 | -10/Materials | Entered another Materials area 2960 | -9/Materials | Evolved 2 slots: Propulsion x2 3695 | -9/Materials | Discovered new exit (range 4) 4244 | -9/Materials | Discovered new exit (range 7) 4902 | -9/Materials | Core integrity fell below 50% 5129 | -9/Materials | Discovered new exit (range 8) 5482 | -9/Materials | Identified exit to Storage 5482 | -9/Materials | Entered Storage 6124 | -9/Storage | Used back door to open Recycling access 6124 | -9/Storage | Discovered new exit (range 4) 6339 | -9/Storage | Discovered new exit (range 15) 6930 | -9/Storage | Core integrity fell below 20% 7859 | -9/Storage | Entered Recycling 7912 | -9/Recycling | Scanned before Scraplab entrance 8059 | -9/Recycling | Entered Scraplab 8078 | -9/Recycling | Discovered new exit (range 3) 8083 | -9/Recycling | Entered Scraptown 8410 | -9/Scraptown | Build established: Mutant 8620 | -9/Scraptown | Discovered new exit (range 5) 8804 | -9/Scraptown | Visited CPS Storage 8862 | -9/Scraptown | Visited Comm Corps 8972 | -9/Scraptown | Visited Cyclists 9025 | -9/Scraptown | Visited Cave Peace 9086 | -9/Scraptown | Visited IN-MT5's Study 9170 | -9/Scraptown | Visited Fellowship of the Rings 9207 | -9/Scraptown | Visited Symbiants 9560 | -9/Scraptown | Visited UFD Registry 9560 | -9/Scraptown | Registered with UFD as "Armorback" 9652 | -9/Scraptown | Entered Cyclist Reading Room 9662 | -9/Scraptown | Learned location of Exiles (-9) 9662 | -9/Scraptown | Learned location of Zion (-7) 9841 | -9/Scraptown | Visited Science Guys 9923 | -9/Scraptown | Visited Junk Cannon Lab 9988 | -9/Scraptown | Visited Research Penetration Think Tank 10041 | -9/Scraptown | Visited Cartography Club 10260 | -9/Scraptown | Discovered new exit (range 12) 10616 | -9/Scraptown | Visited Derelict Rescue Squad 10672 | -9/Scraptown | Visited Supply Room 10708 | -9/Scraptown | Visited Junk Repository 10737 | -9/Scraptown | Visited A0-MCA Data Center 10752 | -9/Scraptown | Given a B rating by A0-MCA 10795 | -9/Scraptown | Visited DA-N13 Charitable Foundation 10805 | -9/Scraptown | Found DCF Scrap (30 items) 10863 | -9/Scraptown | Visited Curators Association 11794 | -9/Scraptown | Learned location of Mines (-9) 11794 | -9/Scraptown | Learned location of Warlord (-4) 11794 | -9/Scraptown | Learned location of Hub_04(d) (-5) 11794 | -9/Scraptown | Learned location of Testing (-2) 11794 | -9/Scraptown | Learned 8 Factory zone layouts 11794 | -9/Scraptown | Learned 8 Access zone layouts 11794 | -9/Scraptown | Learned 8 Lower Caves zone layouts 11794 | -9/Scraptown | Learned 8 Materials zone layouts 11794 | -9/Scraptown | Learned 16 Lower Caves zone layouts 11794 | -9/Scraptown | Learned 16 Upper Caves zone layouts 11794 | -9/Scraptown | Learned 4 Hub_04(d) zone layouts 11794 | -9/Scraptown | Learned Research emergency access door positions 11794 | -9/Scraptown | Learned location of 2 exits from Upper Caves 11794 | -9/Scraptown | Learned location of 3 exits from Upper Caves 11794 | -9/Scraptown | Learned 20 Proximity Caves zone layouts 11794 | -9/Scraptown | Learned location of 3 exits from Factory 12407 | -9/Scraptown | Met Optimus 12407 | -9/Scraptown | Accepted into 0bPrime 12541 | -9/Scraptown | Entered Factory 12541 | -6/Factory | Evolved 6 slots: Propulsion x2, Utility x4 12542 | -6/Factory | Identified exit to Factory 12542 | -6/Factory | Identified exit to Lower Caves 12743 | -6/Factory | Discovered exit to Lower Caves (range 5) 12806 | -6/Factory | Discovered exit to Factory (range 7) 12942 | -6/Factory | Build established: Scout 13089 | -6/Factory | Loaded intel: 8 recycling unit locations 13149 | -6/Factory | Learned location of Protoforge (-2) 13209 | -6/Factory | Discovered exit to Factory (range 16) 13400 | -6/Factory | Entered another Factory area 13400 | -5/Factory | Evolved 2 slots: Utility x2 13467 | -5/Factory | Loaded intel: 8 recycling unit locations 13477 | -5/Factory | Identified exit to Factory 13626 | -5/Factory | Sucked down chute 13626 | -5/Factory | Entered Waste 13628 | -5/Waste | Spotted C-40 Crusher 13630 | -5/Waste | Spotted C-40 Crusher 13631 | -5/Waste | Spotted C-40 Crusher 13641 | -5/Waste | EMP discharged 13641 | -5/Waste | Spotted C-40 Crusher 13649 | -5/Waste | Spotted C-40 Crusher 13649 | -5/Waste | Spotted C-40 Crusher 13650 | -5/Waste | Discovered new exit (range 12) 13652 | -5/Waste | Identified exit to Factory 13652 | -5/Waste | Entered Factory 13692 | -5/Factory | Loaded intel: 8 recycling unit locations 13759 | -5/Factory | Identified exit to Upper Caves 13759 | -5/Factory | Identified exit to Extension 13772 | -5/Factory | Build established: Hacker-Scout 13837 | -5/Factory | Discovered exit to Factory (range 15) 13898 | -5/Factory | Spotted B-75 Beast 13944 | -5/Factory | Entered Upper Caves 13945 | -5/Upper Caves | Identified exit to Upper Caves 13952 | -5/Upper Caves | Entered an active Warlord outpost 13954 | -5/Upper Caves | Learned Factory trap positions 13954 | -5/Upper Caves | Learned Research stockpile data 13976 | -5/Upper Caves | Learned location of Armory (-3) 14075 | -5/Upper Caves | Attracted the attention of an 0b10 checkpoint 14076 | -5/Upper Caves | Entered another Upper Caves area 14077 | -5/Upper Caves | Identified exit to Zhirov 14267 | -5/Upper Caves | Learned Factory interactive machine intel 14305 | -5/Upper Caves | Attracted the attention of an 0b10 checkpoint 14373 | -5/Upper Caves | Entered Zhirov 14373 | -5/Zhirov | Discovered new exit (range 3) 14378 | -5/Zhirov | Met Zhirov 14385 | -5/Zhirov | Found Alien Artifact 14385 | -5/Zhirov | Identified Integrated Reactor 14385 | -5/Zhirov | Installed Integrated Reactor, increased core energy generation (+10) 14423 | -5/Zhirov | Found Alien Artifact 14429 | -5/Zhirov | Learned location of Quarantine (-3) 14429 | -5/Zhirov | Learned location of Command (-1) 14431 | -5/Zhirov | Zhirov requested help retrieving the SGEMP Prototype 14438 | -5/Zhirov | Identified exit to Proximity Caves 14438 | -5/Zhirov | Entered Proximity Caves 14571 | -4/Proximity Caves | Entered Factory 14571 | -4/Factory | Evolved 2 slots: Propulsion x1, Utility x1 14572 | -4/Factory | Identified exit to Upper Caves 14573 | -4/Factory | Loaded intel: 101 trap records 14574 | -4/Factory | Loaded intel: 53 interactive machine locations 14650 | -4/Factory | Found Prototype Processor 14650 | -4/Factory | Identified Exp. Melee Analysis Suite 14669 | -4/Factory | Loaded intel: 8 recycling unit locations 14931 | -4/Factory | Fabricated Cld. VTOL Module? 14956 | -4/Factory | Discovered new exit (range 5) 14957 | -4/Factory | Identified exit to Research 14959 | -4/Factory | Entered Research 14959 | -3/Research | Evolved 2 slots: Propulsion x1, Utility x1 14960 | -3/Research | Identified exit to Quarantine 15019 | -3/Research | Discovered new exit (range 5) 15020 | -3/Research | Identified exit to Armory 15163 | -3/Research | Spotted B-86 Titan 15193 | -3/Research | Loaded intel: 5 recycling unit locations 15383 | -3/Research | Spotted B-86 Titan 15460 | -3/Research | Fabricated Cld. VTOL Module? 15628 | -3/Research | Entered Quarantine 15659 | -3/Quarantine | Found Alien Impact Weapon 15659 | -3/Quarantine | Identified Core Stripper 15669 | -3/Quarantine | Found Alien Artifact 15669 | -3/Quarantine | Identified Core Reset Matrix 15669 | -3/Quarantine | Identified Transdimensional Reconstructor 15669 | -3/Quarantine | Used Core Reset Matrix 15673 | -3/Quarantine | Detected hypermatrix surge 15673 | -3/Quarantine | Sensed 14 artifacts in vicinity 15707 | -3/Quarantine | Found Subatomic Replicator 15758 | -3/Quarantine | Repaired Imp. Flight Unit 15831 | -3/Quarantine | Found Hpw. Transdimensional Reconstructor 15833 | -3/Quarantine | Found Transdimensional Reconstructor 15847 | -3/Quarantine | Found Terrabomb 15929 | -3/Quarantine | Discovered new exit (range 15) 15964 | -3/Quarantine | Warped through subspace 15985 | -3/Quarantine | Found Sigix Broadsword 16030 | -3/Quarantine | Identified exit to Research 16030 | -3/Quarantine | Entered Research 16030 | -2/Research | Evolved 2 slots: Propulsion x1, Utility x1 16139 | -2/Research | Identified exit to Testing 16168 | -2/Research | Loaded intel: 5 recycling unit locations 16211 | -2/Research | Found Prototype Hackware 16211 | -2/Research | Identified Exp. System Shield 16219 | -2/Research | Spotted B-90 Cyclops 16273 | -2/Research | Spotted B-90 Cyclops 16285 | -2/Research | Warped through subspace 16318 | -2/Research | Spotted B-90 Cyclops 16345 | -2/Research | Spotted B-90 Cyclops 16353 | -2/Research | Entered Testing 16360 | -2/Testing | Found Unknown Device 16360 | -2/Testing | Identified Quantum Capacitor 16407 | -2/Testing | Found Prototype Energy Gun 16407 | -2/Testing | Identified Tachyon Dispersion Ray 16477 | -2/Testing | Found Prototype Energy Cannon 16477 | -2/Testing | Identified Disintegrator 16537 | -2/Testing | Spotted Fortress 16552 | -2/Testing | Discovered new exit (range 6) 16552 | -2/Testing | Discovered new exit (range 6) 16553 | -2/Testing | Identified exit to Section 7 16554 | -2/Testing | Identified exit to Protoforge 16554 | -2/Testing | Entered Protoforge 16555 | -2/Protoforge | Sensed 2 artifacts in vicinity 16565 | -2/Protoforge | Superfortress began startup sequence 16658 | -2/Protoforge | Spotted Hotshot 16658 | -2/Protoforge | Spotted Hotshot 16716 | -2/Protoforge | Spotted B-90 Cyclops 16741 | -2/Protoforge | Spotted Overlord 16759 | -2/Protoforge | Lost 7 parts (1p3n3u) 16762 | -2/Protoforge | Spotted EXE-6 16762 | -2/Protoforge | Spotted EXE-6 16790 | -2/Protoforge | Spotted SKR-2 16790 | -2/Protoforge | Spotted SKR-2 16790 | -2/Protoforge | Spotted SKR-2 16799 | -2/Protoforge | Spotted EXE-6 16799 | -2/Protoforge | Spotted EXE-6 16802 | -2/Protoforge | Core integrity fell below 50% 16810 | -2/Protoforge | Core integrity fell below 20% 16811 | -2/Protoforge | Destroyed by EXE-6 with Concept XC Strikerail Last Messages --------------- 16801_ K-01 Serf cleans the Machine. 16802_ Penetrated by Slug. 16802_ Slug penetrates Forge Pylon. 16802_ Forge Pylon damaged. 16802_ Penetrated by Slug. 16802_ Slug penetrates Forge Pylon. 16802_ K-01 Serf suffers critical hit (Blast). 16802_ K-01 Serf destroyed. 16805_ Imp. Flight Unit destroyed. 16805_ Dropped Sml. Storage Unit. 16806_ Knocked back. 16807_ Acquired Terrabomb. 16808_ Scythe destroyed. 16809_ 0b10 Decoder Chip [Scout] destroyed. 16809_ Critical hit (Blast). 16809_ Imp. Flight Unit destroyed. 16809_ Exp. System Shield destroyed. 16810_ FP Insight Station damaged. 16811_ Acquired 1 matter. 16811_ Knocked back. Map ----- +----------------------------------------------------+ | ??????????????? """ " | | ??????????????"" ?" """ " "" | | ?????????????"""" "" " """" " " "" " | | ???????????? " " " " """ | | ??????????? " " ?" """" " " " " | | ??????????? """"" "" "" " " | | ?????????? " "" " """"""""" | | ?????????? """" "" """"""""""""""" | | ????????? """" "" """"""""""""""""" | | ????????? " """"""""""""""""""" | | ????????# "" " """"""""""""""""""""" | | ????????# " """""""""""""""""""""" | | ????????# " "" """"""""""""""""""""""" | | ????????# """"" " """""""""""""""""""""""" | | ????????# "" "" H " """""""""""""""""""""""" | | ????????# "" " "" """""""""""""""""""""""" | | ????????# "" " """"""""""""""""""""""""" | | ????????# "" " """"""""""""""""""""""""" | | ????????# " """"""""""""""""""""""""" | | ????????# "" """"""""""""""""??""""""" | | ????????# """ " """""""""""""""????"""""" | | #???##??# " "" """""""""""""""?????""""" | | ##### ### """ p " """""""""""""""??????"""" | | + " """ p"""" " """"""""""""""""??????""" | | + "" % """"""""""""""""?????"""" | | + " @"""""""""""""""?????"""" | | ##### ### """"""""""""""""???""""" | | ######??# """"""" "" """"""""""""""""???""""" | | #??# """ " " """""""""""""""???""""" | | """ #??# " " """"""""""""""??"""""" | | """ #??# "" """""""""""""??"""""" | | """ #??# "" "" ""% """""""""""??"""""" | | #??# "" "" " "" """"""""""??""""" | | #??# "" """ %%!|"" """"""""???"""" "" | | #+####??# " " % % """""?""" "" | | ????????# " """ "" "" | | ????????# " " """Km " """"" " | | ????????# " """ " " | | ????????# =% "" " " """" """" | | ????????# " " ""E"K """ """ "" """" | | ????????# K " " """" "?" " | | ????????# "" " " """ " """ " | | ????????# "" "" " " " " " | | ????????# " "" " """" | | ????????# "" "" " """"" "" """ " | | ????????# "" " " " " | | ????????# "" "" " | | ????????# " "" % """""""""" | | ????????# "" "" """"""""""" | | ????????# """ " " """""""""" | +----------------------------------------------------+ Best States ------------- Heat Dissipation 136 Energy Generation 35 Energy Capacity 350 Matter Stores 300 Matter Capacity 300 Sight Range 16 Robot Scan Range 18 Terrain Scan Density 10 Armor Coverage 150 Evasion (%) 66 Targeting Accuracy 20 Recoil Reduction 4 Offensive Hacking 28 Defensive Hacking 16 Item Schematics ----------------- None Robot Schematics ------------------ None Fabricated ------------ Cld. VTOL Module | x1 | -4/Factory Cld. VTOL Module | x1 | -3/Research Repaired ---------- Imp. Flight Unit | 32% | -3/Quarantine Alien Tech Used ----------------- Integrated Reactor Core Stripper Core Reset Matrix Transdimensional Reconstructor Sigix Broadsword High-powered Transdimensional Reconstructor Achievements -------------- None Challenges ------------ None Game ------ Seed ActuatorMicrodissipatorRail Manual? 0 Play Time 02:27:15 Cumulative 125.7 hours Start 2025.06.09 @ 10:13:45 End 2025.06.09 @ 13:27:49 Sessions 1 Manual Loads 0 Difficulty Rogue Special Mode None Game No. 131 Rogue 131 Adventurer 0 Explorer 0 Win Type - Total 6 Types 4/0/0/2/0/0/0/0/0/0 Lore% 59 Gallery% 57 Achievement% 56 Wizard Run 0 Options --------- Layout 1 ASCII 0 Keyboard 0 Movement Numpad Keybinds 0 Fullscreen 1 Font 32/SmallcapsGlow Map View 77x35 Zoom Use 0% Tactical HUD 1 Map Filters NONE Filters NONE Steam 1 RUN: e2daa7c3-b17d-46d6-8995-8df374741658